bitfinex/quotes_ETHUSD_20220309
["timestamp","ask_amount","ask_price","bid_price","bid_amount"]
[1646799124788,0.01522784,2712.8,2712.4,0.0121]
[1646799124789,0.00472034,2712.7,2712.4,0.0121]
[1646799124989,0.00472034,2712.7,2712.6,0.9216]
[1646799125189,2.034e-05,2712.7,2712.6,4.8666]
[1646799125395,0.0165716,2713.0,2712.7,5.5]
[1646799125589,0.00578488,2712.9,2712.8,1.3665694]
[1646799125794,0.01651435,2713.7,2712.8,0.445]
[1646799125795,0.04576944,2713.4,2712.8,0.445]
[1646799125989,0.05535396,2713.4,2712.9,0.92173]
[1646799126190,0.05535396,2713.4,2713.0,0.445]
[1646799126389,0.05535396,2713.4,2713.1,3.5]
[1646799126591,0.00908848,2714.4,2713.6,0.9212799]
[1646799126793,0.03996232,2713.9,2713.8,3.0]
[1646799126991,0.00812848,2714.4,2713.9,5.5]
[1646799127234,0.00812848,2714.4,2714.0,3.20816]
[1646799127436,0.00812848,2714.4,2714.0,3.50816]
[1646799127635,0.01625696,2714.4,2714.2,7.3420458]
[1646799127836,5.696e-05,2714.4,2714.3,0.445]
[1646799128039,0.01663824,2714.8,2714.4,5.5]
[1646799128240,0.01663824,2714.8,2714.5,0.445]
[1646799128440,0.03774561,2714.8,2714.5,0.445]
[1646799128638,0.03774561,2714.8,2714.4,1.8419198]
[1646799128639,0.02777562,2714.6,2714.4,1.8419198]
[1646799128842,0.02777562,2714.6,2714.5,0.445]
[1646799129041,0.02777562,2714.6,2713.9,0.445]
[1646799129239,0.03774561,2714.8,2714.7,0.09013036]
[1646799129442,0.03774561,2714.8,2713.4,5.59072615]
[1646799129443,0.95623989,2714.1,2713.4,0.11412615]
[1646799129641,0.95623989,2714.1,2713.5,0.92155]
[1646799129842,0.00096,2714.6,2713.5,0.92155]
[1646799130043,0.00111108,2714.7,2713.5,0.92155]
[1646799131081,0.05530818,2714.8,2713.5,0.92155]
[1646799131280,0.02753256,2714.8,2713.5,0.92155]
[1646799131481,0.17351357,2714.8,2713.5,0.92156]
[1646799131883,0.89093216,2714.4,2713.9,0.88684865]
[1646799132081,0.89093216,2714.4,2713.6,0.1842]
[1646799132281,0.89093216,2714.4,2713.5,0.1842]
[1646799132487,0.89093216,2714.4,2713.7,1.84282]
[1646799132682,0.89093216,2714.4,2713.5,0.1842]
[1646799132683,3.5,2714.3,2713.5,0.1842]
[1646799132883,3.5,2714.3,2713.4,0.11412615]
[1646799132884,4.5,2714.3,2713.4,0.11412615]
[1646799133087,4.5,2714.3,2712.8,0.3685]
[1646799133088,5.5,2714.1,2712.8,0.3685]
[1646799133288,0.01277874,2713.4,2712.2,0.1842]
[1646799133585,0.445,2713.3,2711.4,0.1842]
[1646799133784,3.50096,2713.2,2711.0,0.1842]
[1646799133987,0.445,2713.1,2711.0,0.32239997]
[1646799134183,3.50096,2713.0,2711.2,0.9222]
[1646799134482,0.95761615,2712.0,2711.3,0.1842]
[1646799134930,0.95761615,2712.0,2711.1,0.1842]
[1646799135531,0.95761615,2712.0,2711.4,1.14113295]
[1646799135731,0.90761615,2712.0,2711.4,1.14113295]
[1646799135933,0.445,2712.3,2711.4,1.14113295]
[1646799136334,0.445,2712.3,2711.4,1.14837343]
[1646799136735,0.395,2712.3,2711.6,0.5]
[1646799136935,0.97476156,2712.1,2711.5,0.92223]
[1646799137135,5.5,2712.6,2711.7,0.00676053]
[1646799137337,0.445,2712.5,2711.7,0.00676053]
[1646799137736,0.14598101,2712.4,2711.7,0.00676053]
[1646799137935,0.445,2712.3,2711.7,0.00676053]
[1646799138139,3.9226547,2712.1,2711.7,6.053e-05]
[1646799138337,0.445,2712.0,2711.7,6.053e-05]
[1646799138589,0.59098101,2712.0,2710.1,0.1842]
[1646799138788,0.14598101,2711.9,2710.1,0.1842]
[1646799138989,0.445,2711.8,2710.1,0.1842]
[1646799139187,0.445,2711.8,2710.1,3.6842]
[1646799139188,0.395,2711.8,2710.1,3.6842]
[1646799139389,0.395,2711.8,2710.5,1.84493]
[1646799139588,0.14598101,2711.9,2710.5,0.3]
[1646799139589,0.445,2711.7,2710.5,0.3]
[1646799139789,0.445,2711.6,2711.4,0.01200895]
[1646799140391,1.67281509,2711.6,2711.4,0.01200895]
[1646799140592,1.67281509,2711.6,2709.9,0.1842]
[1646799140593,3.5,2711.5,2709.9,0.1842]
[1646799140804,3.5,2711.5,2709.2,0.1844]
[1646799140805,0.92298,2711.1,2709.2,0.1844]
[1646799140993,0.3,2710.7,2709.1,0.13819997]
[1646799141195,9.68298101,2711.4,2709.3,1.50998466]
[1646799141196,0.445,2710.8,2709.3,1.50998466]
[1646799141395,0.445,2711.2,2709.7,0.92278]
[1646799141597,0.55574404,2711.9,2709.8,1.69438466]
[1646799141598,1.18186058,2711.1,2709.8,1.69438466]
[1646799141797,1.18186058,2711.1,2709.8,0.1844]
[1646799141995,1.18186058,2711.1,2709.6,1.84561]
[1646799142250,1.18186058,2711.1,2709.7,1.69420328]
[1646799142444,1.18186058,2711.1,2709.8,2.43262328]
[1646799142645,1.18186058,2711.1,2710.3,1.13164707]
[1646799142845,1.18186058,2711.1,2709.8,0.92961718]
[1646799143047,1.18186058,2711.1,2709.9,1.80991164]
[1646799143248,1.18186058,2711.1,2710.0,1.84533]
[1646799143449,1.0,2711.7,2710.1,2.43262164]
[1646799143646,1.55574404,2711.9,2710.2,1.50991164]
[1646799143850,0.55574404,2711.9,2710.2,1.50991164]
[1646799144049,0.7022947,2711.9,2710.3,0.1844]
[1646799144448,0.7022947,2711.9,2710.0,2.14533]
[1646799144449,1.06067608,2711.4,2710.9,1.07202914]
[1646799144653,0.14655066,2711.9,2710.9,1.07202914]
[1646799144852,6.037,2712.4,2710.9,1.60612914]
[1646799145050,11.60628918,2712.6,2710.9,1.60612914]
[1646799145251,11.60628918,2712.6,2710.9,1.61250643]
[1646799145451,11.60628918,2712.6,2711.0,3.5]
[1646799145656,1.05753699,2712.4,2711.8,1.00514089]
[1646799145984,1.05753699,2712.4,2711.0,3.6842]
[1646799146184,1.05753699,2712.4,2711.1,1.50929849]
[1646799146588,1.05753699,2712.4,2711.1,1.80929849]
[1646799146787,0.87282429,2711.7,2711.5,0.00637594]
[1646799146986,0.00096,2712.8,2711.8,0.90795886]
[1646799147287,0.68072341,2712.2,2711.8,0.90795886]
[1646799147687,0.00096,2712.8,2711.8,0.90795886]
[1646799147886,0.55863479,2712.9,2711.8,0.90795886]
[1646799148092,0.01298952,2712.4,2711.8,0.90795886]
[1646799148488,0.14655066,2712.4,2711.8,0.90795886]
[1646799148688,0.14655066,2712.4,2712.0,0.87515004]
[1646799148891,0.14655066,2712.4,2711.8,0.90795886]
[1646799149287,5.5,2712.4,2711.8,0.90795886]
[1646799149736,5.5,2712.4,2710.0,0.6395244]
[1646799149737,3.0,2711.9,2710.0,0.6395244]
[1646799149937,3.0,2711.9,2710.2,0.87999404]
[1646799149938,0.92281,2711.6,2710.2,0.87999404]
[1646799150136,0.445,2711.5,2710.2,0.87999404]
[1646799150335,0.59117542,2711.5,2710.3,1.50982683]
[1646799150735,0.59117542,2711.5,2710.4,0.1844]
[1646799150736,0.14617542,2711.5,2710.4,0.1844]
[1646799150937,0.14617542,2711.5,2711.3,1.00858432]
[1646799151137,0.14617542,2711.9,2711.3,1.00858432]
[1646799151336,11.60863479,2712.9,2711.3,1.00858432]
[1646799151540,0.00096,2712.7,2711.3,1.00858432]
[1646799151736,11.60863479,2712.9,2711.3,1.30858432]
[1646799151737,0.00096,2712.8,2711.3,1.30858432]
[1646799151940,0.00110454,2712.5,2711.4,5.14757332]
[1646799152138,0.00110454,2712.5,2712.3,1.0031774]
[1646799152740,0.00110454,2712.5,2711.8,0.92211]
[1646799152944,0.00110454,2712.5,2711.0,2.7664]
[1646799153144,0.00110454,2712.5,2710.4,0.01258855]
[1646799153145,0.58948693,2712.4,2710.4,2.16211831]
[1646799153342,0.58948693,2712.4,2710.5,1.50952846]
[1646799153588,0.58948693,2712.4,2710.3,5.8153]
[1646799153589,0.14448693,2712.3,2710.6,1.50952846]
[1646799153791,0.98574685,2711.9,2711.3,0.88337842]
[1646799153990,0.45738501,2712.0,2710.7,0.9225]
[1646799154191,0.14448693,2712.3,2710.6,0.1844]
[1646799154192,3.5,2711.9,2710.6,0.1844]
[1646799154389,1.0,2711.9,2710.6,0.1844]
[1646799154588,3.5,2711.8,2710.6,0.1844]
[1646799154888,4.64448693,2711.8,2710.6,0.1844]
[1646799155188,1.2071393,2711.3,2710.7,1.06443029]
[1646799155390,1.2071393,2711.3,2710.5,0.13819997]
[1646799155788,1.2071393,2711.3,2709.8,0.1844]
[1646799155789,3.6444833,2711.2,2709.8,0.1844]
[1646799155988,3.6444833,2711.2,2709.6,4.3292644]
[1646799155989,3.6444833,2711.2,2709.9,1.50988896]
[1646799156189,4.6444833,2711.2,2711.1,0.00724723]
[1646799156392,5.0894833,2711.2,2711.1,0.00724723]
[1646799156590,1.445,2711.2,2711.1,0.00724723]
[1646799156799,5.5072,2711.1,2709.4,0.8239244]
[1646799156991,5.5072,2711.1,2709.5,1.50998696]
[1646799156992,3.945,2711.0,2709.5,1.50998696]
[1646799157237,1.5894833,2711.0,2709.5,1.50998696]
[1646799157438,1.5894833,2711.0,2709.7,0.92287]
[1646799157439,0.1444833,2710.9,2709.7,0.92287]
[1646799157639,0.5894833,2710.9,2709.7,0.92287]
[1646799157837,0.5894833,2710.9,2709.8,0.92559573]
[1646799157838,1.16130161,2710.4,2709.8,0.92559573]
[1646799158044,3.5,2710.3,2709.4,1.84575]
[1646799158341,1.16130161,2710.4,2709.4,1.84575]
[1646799158342,1.60630161,2710.4,2709.4,1.84575]
[1646799158544,4.5,2710.3,2708.7,0.1844]
[1646799158843,4.5,2710.3,2708.7,1.99473644]
[1646799159047,4.5,2710.3,2709.2,2.98061232]
[1646799159247,3.5,2710.2,2709.3,1.51033644]
[1646799159645,4.5,2710.2,2709.2,1.13476232]
[1646799159847,4.5,2710.2,2709.6,0.00727888]
[1646799160046,11.725,2710.1,2709.6,0.00727888]
[1646799160246,3.5,2710.0,2709.6,0.00727888]
[1646799160447,14.725,2709.9,2709.6,0.00727888]
[1646799160646,11.28,2709.7,2709.6,0.00727888]
[1646799160846,5.5,2709.6,2707.7,0.78130328]
[1646799161101,3.945,2709.5,2708.6,1.03482399]
[1646799161308,3.945,2709.5,2707.7,0.14177888]
[1646799161309,3.945,2709.4,2708.3,0.92334]
[1646799161508,0.04194,2709.3,2708.3,0.92334]
[1646799161706,0.04194,2709.3,2707.7,1.84688]
[1646799161906,0.04194,2709.3,2707.8,1.51072726]
[1646799162309,3.54194,2709.3,2708.5,0.96112253]
[1646799162506,0.04194,2709.3,2708.5,0.96112253]
[1646799162712,4.54194,2709.3,2708.5,0.96112253]
[1646799162908,3.54194,2709.3,2707.4,0.1844]
[1646799163109,0.445,2709.2,2707.5,1.51087083]
[1646799163308,0.445,2709.2,2707.6,0.1845]
[1646799163309,4.46557,2709.1,2707.6,0.1845]
[1646799163508,0.48693,2709.1,2707.7,1.51087083]
[1646799163707,4.5,2709.6,2707.8,0.1845]
[1646799163708,0.04193,2709.5,2707.8,0.1845]
[1646799163907,0.04193,2709.5,2708.3,1.07651594]
[1646799164109,0.48693,2709.5,2708.3,1.07651594]
[1646799164308,3.5,2709.4,2708.3,1.07651594]
[1646799164838,4.4235339,2709.4,2708.3,1.07651594]
[1646799165134,0.97871217,2709.1,2708.3,1.07651594]
[1646799165433,0.97871217,2709.1,2708.8,0.00696252]
[1646799165837,3.5,2709.4,2708.3,1.07651594]
[1646799165838,0.04193,2709.3,2708.3,1.07651594]
[1646799166038,1.04193,2709.4,2708.3,1.07651594]
[1646799166238,0.04193,2709.4,2708.3,1.07651594]
[1646799166540,3.54193,2709.4,2708.3,1.07651594]
[1646799166737,0.04193,2709.4,2708.3,1.07651594]
[1646799166940,0.9377823,2709.2,2708.3,1.07651594]
[1646799167138,0.04193,2709.1,2708.3,1.07651594]
[1646799168141,0.9377823,2709.2,2708.4,1.51065421]
[1646799168340,0.9377823,2709.2,2708.3,1.07651594]
[1646799169008,0.9377823,2709.2,2708.5,0.92326]
[1646799169397,0.90184508,2709.6,2708.9,1.11216921]
[1646799169597,1.90184508,2709.6,2708.5,0.92326]
[1646799169802,5.5,2709.4,2708.7,0.00728508]
[1646799170002,4.868561,2709.3,2708.7,0.00728508]
[1646799170199,0.445,2709.3,2708.7,0.00728508]
[1646799170399,1.445,2709.3,2708.7,0.00728508]
[1646799170896,0.445,2709.3,2708.7,0.00728508]
[1646799171099,3.945,2709.3,2708.7,0.00728508]
[1646799171299,3.945,2709.3,2708.2,0.9817604]
[1646799171300,4.945,2709.3,2708.2,0.9817604]
[1646799171602,1.445,2709.3,2708.2,0.9817604]
[1646799171799,0.86417165,2709.4,2708.2,0.9817604]
[1646799171997,0.56417165,2709.4,2708.2,0.9817604]
[1646799172242,5.778,2709.7,2708.2,0.9817604]
[1646799172243,0.1844,2709.7,2708.2,0.9817604]
[1646799172436,0.1844,2709.9,2709.5,1.08786303]
[1646799172640,0.1844,2710.3,2709.5,1.08786303]
[1646799173335,0.1844,2710.5,2709.5,1.08786303]
[1646799173536,0.90787974,2710.5,2709.5,1.08786303]
[1646799173836,0.90787974,2710.5,2709.0,0.92309]
[1646799173837,0.1844,2710.4,2709.0,0.92309]
[1646799174540,0.1844,2710.4,2708.3,1.2168]
[1646799174541,11.28,2710.2,2708.3,1.2168]
[1646799174736,11.28,2710.2,2708.4,1.51056986]
[1646799174737,1.09449996,2709.4,2708.4,1.51056986]
[1646799174937,1.09449996,2709.4,2708.4,3.35697986]
[1646799175139,15.1088833,2710.1,2708.5,1.51056986]
[1646799175140,0.445,2709.6,2708.5,1.51056986]
[1646799175340,1.0,2709.7,2708.5,1.51056986]
[1646799175537,4.6844,2709.7,2708.5,1.51056986]
[1646799175738,1.1844,2709.7,2708.7,0.92319]
[1646799175982,0.1844,2709.7,2708.9,0.00727921]
[1646799176184,1.36013592,2709.9,2709.3,0.98182075]
[1646799176588,1.36013592,2709.9,2708.9,0.00727921]
[1646799176988,1.36013592,2709.9,2708.7,1.22319]
[1646799176989,4.67573592,2709.9,2708.7,1.22319]
[1646799177191,4.67573592,2709.9,2709.5,0.0072778]
[1646799177489,1.17573592,2709.9,2709.5,0.0072778]
[1646799178088,0.3,2710.1,2709.2,1.23010901]
[1646799178289,3.6844,2710.4,2709.2,1.61050901]
[1646799178290,1.1844,2710.4,2709.2,1.61050901]
[1646799178590,6.1856,2710.6,2709.5,0.00722237]
[1646799178791,0.73432804,2710.8,2709.5,0.00722237]
[1646799179189,0.73432804,2710.8,2710.1,0.97093413]
[1646799179190,1.66915716,2710.8,2710.1,0.97093413]
[1646799179391,0.73432804,2710.8,2710.1,0.97093413]
[1646799179590,0.1844,2710.8,2710.1,0.97093413]
[1646799179840,0.6444833,2710.9,2710.1,0.97093413]
[1646799179841,0.50370281,2710.9,2710.1,0.97093413]
[1646799180837,0.5,2710.9,2710.1,0.97093413]
[1646799181039,3.5,2710.8,2709.7,0.1844]
[1646799181240,4.08963354,2710.8,2709.5,0.00722245]
[1646799181643,5.08963354,2710.8,2709.5,0.00722245]
[1646799181840,0.1844,2710.7,2709.3,0.92298]
[1646799182042,0.98812633,2710.2,2709.5,0.91762718]
[1646799182241,0.98812633,2710.2,2709.5,0.92484959]
[1646799182641,0.98812633,2710.2,2709.5,0.00722241]
[1646799182851,3.945,2710.1,2709.5,0.00722241]
[1646799183242,1.445,2710.1,2709.5,0.01399669]
[1646799183494,1.445,2710.1,2709.5,0.00677428]
[1646799183684,3.945,2710.1,2709.5,0.00677428]
[1646799183983,0.96715087,2709.7,2709.5,0.00677428]
[1646799184186,0.96715087,2709.7,2708.8,1.84614]
[1646799184384,0.445,2709.9,2708.9,1.51049257]
[1646799184584,0.445,2709.9,2709.5,0.00677427]
[1646799185387,5.5,2709.7,2708.5,0.5648]
[1646799185587,5.5,2709.7,2708.4,0.1844]
[1646799185588,3.945,2709.6,2708.4,0.1844]
[1646799185786,11.28,2709.5,2708.0,0.1844]
[1646799185987,0.445,2709.4,2708.1,1.51076776]
[1646799186185,4.64463354,2709.6,2708.2,1.84657]
[1646799186186,0.445,2709.3,2708.2,1.84657]
[1646799186387,3.945,2709.5,2709.2,1.05727787]
[1646799186588,0.5,2709.4,2709.2,1.05727787]
[1646799186789,0.5,2709.4,2708.2,1.84657]
[1646799186988,0.5,2709.4,2708.3,1.5106887]
[1646799187227,0.5,2709.4,2708.4,1.29239]
[1646799187432,0.5,2709.4,2708.6,1.84624]
[1646799187630,0.5,2709.4,2708.7,1.5106887]
[1646799187830,3.945,2709.7,2709.1,1.16350743]
[1646799188033,0.445,2709.7,2708.6,1.84624]
[1646799188230,0.445,2709.7,2708.7,1.51058808]
[1646799188432,0.445,2709.7,2708.7,2.43370808]
[1646799188633,0.445,2709.7,2708.8,1.51058808]
[1646799189240,0.445,2709.7,2709.4,0.9528729]
[1646799189437,0.14463354,2710.5,2709.4,0.9528729]
[1646799189438,0.5,2710.8,2710.2,1.61125136]
[1646799189636,0.00450888,2710.3,2710.2,1.61125136]
[1646799190035,0.63993604,2710.8,2710.2,1.61125136]
[1646799190636,0.63993604,2710.8,2710.4,1.01972597]
[1646799190839,0.45563604,2710.8,2710.4,1.01972597]
[1646799191130,0.00112757,2710.5,2710.4,1.01972597]
[1646799191917,0.18085895,2711.2,2710.4,1.31972597]
[1646799192117,0.36525895,2711.2,2710.4,1.31972597]
[1646799192318,0.18085895,2711.2,2710.4,1.31972597]
[1646799192922,0.18085895,2711.2,2710.5,0.92246]
[1646799193225,0.18085895,2711.2,2710.4,1.31972597]
[1646799193426,0.18085895,2711.2,2710.5,0.3691]
[1646799193823,0.18085895,2711.2,2710.7,1.84485]
[1646799194226,0.18085895,2711.2,2710.7,2.21395]
[1646799194426,0.28,2711.4,2711.3,1.0247255]
[1646799194626,0.28445345,2711.4,2711.3,1.0247255]
[1646799195436,0.28,2711.4,2711.3,1.0247255]
[1646799196437,0.00111353,2711.5,2711.3,1.0247255]
[1646799196637,0.8383,2712.1,2711.3,1.0247255]
[1646799197040,0.00136748,2711.9,2711.5,0.92225]
[1646799197838,3.5,2712.0,2711.1,1.84458]
[1646799197839,1.0,2712.0,2711.1,1.84458]
[1646799198237,0.8383,2712.1,2711.1,1.84458]
[1646799198495,3.5,2712.0,2710.9,0.3691]
[1646799198788,0.8383,2712.1,2711.7,0.90895785]
[1646799199392,0.8383,2712.1,2711.8,0.9221]
[1646799199393,0.0043568,2712.0,2711.8,0.9221]
[1646799200493,0.00096,2712.7,2711.9,5.5]
[1646799200692,0.0043568,2712.4,2712.0,2.0]
[1646799200892,0.0043568,2712.4,2712.0,3.84385]
[1646799201097,0.0043568,2712.4,2712.0,4.14385]
[1646799201491,0.0043568,2712.4,2712.3,1.08757755]
[1646799201693,0.1842,2712.9,2712.3,1.08757755]
[1646799202091,0.1842,2713.1,2712.3,1.08757755]
[1646799202341,0.1842,2713.2,2712.3,1.08757755]
[1646799202541,0.88832482,2712.9,2712.3,1.08757755]
[1646799202742,0.88832482,2712.9,2710.8,3.68807]
[1646799202743,3.5,2712.8,2710.8,3.68807]
[1646799202947,3.5,2712.8,2710.9,1.50937091]
[1646799202948,4.08963354,2712.8,2710.9,1.50937091]
[1646799203145,6.18536,2712.7,2710.9,1.50937091]
[1646799203346,3.5,2712.6,2710.9,1.50937091]
[1646799203547,0.00096,2712.5,2710.9,1.50937091]
[1646799203749,0.00096,2712.5,2711.1,0.92237]
[1646799204146,0.00093613,2711.9,2711.1,0.92237]
[1646799204950,0.00093613,2711.9,2711.2,1.09709196]
[1646799205152,0.00096,2712.5,2711.2,2.94158196]
[1646799205453,0.00096,2712.6,2712.1,0.96680456]
[1646799205652,0.0233944,2712.7,2712.1,0.96680456]
[1646799205854,0.0233944,2712.7,2712.1,1.26680456]
[1646799206285,0.0233944,2712.7,2712.1,0.10466156]
[1646799206683,0.0233944,2712.7,2712.3,0.92193]
[1646799206886,0.00111081,2712.5,2712.3,0.92193]
[1646799207585,0.00096,2713.4,2712.3,0.92193]
[1646799207888,3.68516,2713.6,2712.8,0.92179]
[1646799208084,0.1842,2713.6,2712.8,0.92179]
[1646799208284,0.1342,2713.7,2712.8,0.92179]
[1646799208687,0.1342,2713.7,2712.8,1.22179]
[1646799209087,0.1342,2713.7,2713.5,1.05505252]
[1646799209743,0.00444256,2713.8,2713.5,1.05505252]
[1646799210042,0.4552,2714.1,2712.6,1.84357]
[1646799210243,0.4552,2714.1,2712.3,1.181]
[1646799210244,0.00111081,2713.7,2712.3,1.181]
[1646799210443,0.445,2713.6,2712.3,1.181]
[1646799210643,0.445,2713.6,2712.2,4.23359997]
[1646799210846,0.59059355,2713.6,2712.2,4.23359997]
[1646799211047,1.38106054,2713.2,2711.6,2.491]
[1646799211248,0.44596,2713.1,2711.6,2.8554]
[1646799211455,0.81506,2713.1,2711.6,2.8554]
[1646799211651,0.81506,2713.1,2711.6,4.07747]
[1646799211852,0.81506,2713.1,2711.6,3.1554]
[1646799211853,0.4552,2713.0,2711.6,3.1554]
[1646799212049,1.18606554,2712.7,2712.2,1.12597475]
[1646799212251,3.5,2712.6,2712.0,0.9149023]
[1646799212449,0.00096,2712.9,2712.0,0.9149023]
[1646799212649,0.44596,2713.2,2712.0,1.8369823]
[1646799212850,0.00111081,2712.4,2712.0,1.8369823]
[1646799213250,0.00111081,2712.4,2712.0,0.9149023]
[1646799214087,1.11123807,2712.7,2712.0,1.8369623]
[1646799214286,0.00111081,2712.3,2711.5,4.32542]
[1646799214485,0.00111081,2712.3,2711.3,1.17979997]
[1646799214887,0.13526,2712.6,2711.3,1.17979997]
[1646799215085,0.58026,2712.6,2711.5,0.92224]
[1646799215284,0.445,2712.6,2711.5,0.92224]
[1646799215484,0.00111081,2712.0,2711.5,1.29134]
[1646799215895,0.00111081,2712.0,2711.6,3.5]
[1646799216190,0.00444256,2712.4,2712.0,0.00216175]
[1646799216394,0.00444256,2712.4,2712.1,1.2908]
[1646799216592,0.00096,2713.6,2712.3,0.3691]
[1646799216790,0.02776216,2712.7,2712.5,0.3691]
[1646799216988,0.11302216,2714.0,2712.3,3.13421]
[1646799217231,1.01799411,2713.6,2713.0,1.02058376]
[1646799217432,1.24075617,2714.0,2713.0,1.02058376]
[1646799217637,1.09715419,2714.0,2713.0,1.02058376]
[1646799217840,1.09619419,2714.0,2713.0,1.02058376]
[1646799218337,1.59872759,2713.8,2712.6,1.84357]
[1646799218536,0.445,2713.7,2712.0,0.00216175]
[1646799218736,0.445,2713.7,2712.0,0.92423175]
[1646799218737,0.59052198,2713.7,2712.0,0.92423175]
[1646799219138,0.51366198,2713.6,2712.0,0.92423175]
[1646799219336,0.95844387,2713.3,2712.7,1.07921589]
[1646799219535,0.95844387,2713.3,2712.0,0.92423175]
[1646799219737,0.445,2713.5,2712.0,0.92423175]
[1646799219738,0.30096,2713.4,2712.0,0.92423175]
[1646799219936,0.00096,2713.4,2712.0,0.92423175]
[1646799220135,0.00096,2713.4,2712.6,0.00698491]
[1646799220340,11.28,2713.5,2712.6,0.00698491]
[1646799220538,11.725,2713.4,2712.6,0.00698491]
[1646799220738,0.445,2713.3,2712.6,0.00698491]
[1646799221009,0.9522096,2713.1,2712.5,1.13184607]
[1646799221202,1.0,2713.4,2712.5,1.43184607]
[1646799221203,0.00096,2713.4,2712.5,1.43184607]
[1646799221401,0.00103863,2713.1,2712.6,0.00729657]
[1646799221606,0.00103863,2713.1,2712.6,1.85080657]
[1646799221807,0.00103863,2713.1,2712.6,5.35080657]
[1646799222004,0.00103863,2713.1,2712.6,5.65080657]
[1646799222204,0.00103863,2713.1,2713.0,0.95462401]
[1646799222405,0.00103863,2713.1,2712.6,1.85080657]
[1646799222605,0.0259644,2713.3,2712.3,1.24643]
[1646799222805,0.00511389,2713.5,2712.3,0.32223]
[1646799222806,0.00824443,2713.1,2712.3,0.32223]
[1646799223306,0.00824443,2713.1,2712.6,0.92187]
[1646799223506,9.7196,2714.5,2712.8,0.3691]
[1646799223507,0.00096,2714.1,2712.8,0.3691]
[1646799223708,0.55423906,2714.1,2713.1,0.92147]
[1646799223908,0.00131885,2713.5,2713.1,1.22277]
[1646799224110,0.00131885,2713.5,2713.2,1.36644145]
[1646799224412,0.00131885,2713.5,2713.3,1.84294]
[1646799224830,0.00131885,2713.5,2713.3,2.14294]
[1646799225335,0.00103863,2713.4,2713.3,2.14294]
[1646799225535,0.00103863,2713.4,2713.3,1.84294]
[1646799225736,0.00103863,2713.4,2712.6,0.00731689]
[1646799226739,1.05930938,2713.1,2712.6,0.01461993]
[1646799227040,1.05930938,2713.1,2712.6,0.92917304]
[1646799228140,1.05930938,2713.1,2712.6,0.00730304]
[1646799228488,0.00099246,2713.0,2712.6,0.00681601]
[1646799228693,3.50099246,2713.0,2712.6,0.00681601]
[1646799228894,3.945,2713.0,2712.3,0.02223]
[1646799229095,1.01330125,2712.4,2712.3,0.02223]
[1646799229894,1.01330125,2712.4,2712.1,0.3308]
[1646799230294,1.01330125,2712.4,2712.2,0.00678192]
[1646799231296,1.01330125,2712.4,2712.1,0.3308]
[1646799231696,0.0219012,2712.6,2712.2,0.00678204]
[1646799232562,0.00087596,2712.8,2712.7,0.04185022]
[1646799232761,1.17100414,2712.8,2712.7,0.04185022]
[1646799232961,1.17188013,2712.8,2712.7,0.04185022]
[1646799233560,1.17188013,2712.8,2712.1,0.3308]
[1646799233761,5.5,2712.7,2712.1,0.3308]
[1646799234160,0.1121,2712.6,2712.1,0.3308]
[1646799234360,3.6121,2712.6,2712.1,0.3308]
[1646799234760,1.19816433,2712.2,2712.1,0.3308]
[1646799234964,3.50096,2712.8,2712.1,0.3308]
[1646799235161,3.5,2713.0,2712.1,0.3308]
[1646799235363,0.98668893,2713.1,2712.1,0.3308]
[1646799235561,0.98668893,2713.1,2712.0,0.00216175]
[1646799235562,1.09888893,2713.1,2712.0,0.00216175]
[1646799235762,0.98668893,2713.1,2711.8,1.79626175]
[1646799235981,0.00096,2713.0,2711.9,1.50909032]
[1646799236185,0.98764893,2713.1,2711.9,1.50909032]
[1646799236387,0.99777042,2712.7,2712.1,0.92204]
[1646799236587,1.01129012,2712.7,2712.1,0.92204]
[1646799236787,1.01129012,2712.7,2711.8,1.79626175]
[1646799236988,1.01129012,2712.7,2711.9,1.45908703]
[1646799238090,1.01129012,2712.7,2712.1,1.87803666]
[1646799238489,0.0135197,2712.7,2712.1,1.87803666]
[1646799239096,0.0135197,2712.7,2712.1,2.54713666]
[1646799239292,0.0135197,2712.7,2712.1,3.54713666]
[1646799239499,1.0785132,2712.6,2712.1,0.92203]
[1646799239737,0.0135197,2712.7,2712.1,0.92204]
[1646799240144,0.0135197,2712.7,2711.8,1.84408]
[1646799240543,1.17178734,2712.5,2711.9,1.00041267]
[1646799240742,0.0135197,2712.7,2711.9,1.00041267]
[1646799241146,0.0135197,2712.7,2711.9,3.21310267]
[1646799241346,0.0135197,2712.7,2712.0,0.3691]
[1646799241545,0.0135197,2712.7,2712.0,0.6691]
[1646799241945,0.0135197,2712.7,2712.5,0.97209109]
[1646799242148,0.0135197,2712.7,2712.6,0.92188]
[1646799242348,0.0135197,2712.7,2712.0,0.3]
[1646799242852,0.0135197,2712.7,2711.9,0.3]
[1646799243046,0.0135197,2712.7,2712.1,0.92203]
[1646799243246,0.0135197,2712.7,2712.2,0.3691]
[1646799243505,0.0135197,2712.7,2712.4,2.21278]
[1646799243709,0.0135197,2712.7,2712.4,2.51278]
[1646799244109,0.0135197,2712.7,2712.5,1.30809904]
[1646799244311,0.0135197,2712.7,2712.5,2.22983904]
[1646799244610,0.0135197,2712.7,2712.5,2.41403904]
[1646799244810,0.0135197,2712.7,2712.5,2.22983904]
[1646799245210,0.0233225,2713.0,2712.7,0.3691]
[1646799245415,0.00093304,2712.8,2712.7,0.3691]
[1646799245609,0.00093304,2712.8,2712.7,0.8533]
[1646799246011,0.0233238,2713.0,2712.8,4.92158]
[1646799246211,0.00096,2713.6,2712.8,5.29068]
[1646799246412,0.00332222,2713.4,2713.0,0.92156]
[1646799247011,0.00332222,2713.4,2713.0,1.22156]
[1646799247431,1.17992145,2713.6,2713.0,1.22156]
[1646799247838,1.17992145,2713.6,2713.0,0.92156]
[1646799248041,1.17992145,2713.6,2712.4,2.8606]
[1646799248238,1.17992145,2713.6,2712.3,1.22183]
[1646799248438,1.18088145,2713.6,2712.6,0.86939061]
[1646799248638,1.16431501,2713.1,2712.6,0.86939061]
[1646799249040,0.1103,2714.1,2712.6,0.86939061]
[1646799249041,0.00096,2714.0,2712.6,0.86939061]
[1646799249239,0.00096,2713.5,2712.6,0.86939061]